{"text_format":"1","workbook":"xlsx","n_sheets":1,"sheets":["Tabelle1"],"not_rendered":{"charts":0,"images":0,"macros":0,"external_links":0,"defined_names":0,"comments":1,"pivot_tables":0},"unopened":[],"bounds":{"document_bytes":16777216,"sheet_cells":100000,"rows_first":2000,"rows_last":500,"rows_between":2000,"halvings":0,"cell_chars":16384,"cell_head_chars":4096},"cells_cut":0,"cells_raw":0,"read":"whole","date_system":"1900"}

{"sheet":"Tabelle1","index":0,"n_rows":30,"n_cols":13,"rows_kept":30,"cut":false,"hidden":false,"merged":[[29,0,30,1],[6,6,6,8],[2,0,2,3],[0,0,0,3],[20,0,20,3],[15,0,15,3],[18,0,18,3],[17,0,17,3],[13,0,13,3],[14,0,14,3],[27,0,27,3],[26,0,26,3],[24,0,24,3],[25,0,25,3],[29,2,30,5],[28,8,28,9],[4,9,4,12],[21,0,21,3],[22,0,22,3],[23,0,23,3],[7,0,7,3],[16,0,16,3],[10,0,10,3],[11,0,11,3],[12,0,12,3],[19,0,19,3],[4,1,4,7],[5,2,5,4],[5,10,5,12],[5,6,5,8],[28,11,28,12],[29,10,30,10],[29,11,30,12],[29,6,30,7],[29,8,30,9]]}
["Deutscher Kyudo Bund e. V."]
[null,null,null,null,"Monat","Quartal","JAHR"]
["Abrechnung für Monat/Quartal/Jahr:  "]
[]
["Name:",null,null,null,null,null,null,null,"Funktion: "]
["Erstattung auf Konto: ",null,"DE",null,null,"Kontoinhaber: ",null,null,null,"Bank: "]
[null,null,"(IBAN)",null,null,null,"(nur wenn abweichend vom Antragsteller)"]
["Zweck der Ausgabe ",null,null,null,"Kosten-stelle","Büro-material","Porto","Telefon/ Fax","Kopien","Bewirtung","Präsente","Sonstiges","Gesamt      €"]
[]
[null,null,null,null,null,null,null,null,null,null,null,null,{"$f":"SUM(F10:L10)","v":0}]
[null,null,null,null,null,null,null,null,null,null,null,null,{"$f":"SUM(F11:L11)","v":0}]
[null,null,null,null,null,null,null,null,null,null,null,null,{"$f":"SUM(F12:L12)","v":0}]
[null,null,null,null,null,null,null,null,null,null,null,null,0]
[null,null,null,null,null,null,null,null,null,null,null,null,0]
[null,null,null,null,null,null,null,null,null,null,null,null,{"$f":"SUM(F15:L15)","v":0}]
[null,null,null,null,null,null,null,null,null,null,null,null,0]
[null,null,null,null,null,null,null,null,null,null,null,null,0]
[null,null,null,null,null,null,null,null,null,null,null,null,0]
[null,null,null,null,null,null,null,null,null,null,null,null,0]
[null,null,null,null,null,null,null,null,null,null,null,null,0]
[null,null,null,null,null,null,null,null,null,null,null,null,0]
[null,null,null,null,null,null,null,null,null,null,null,null,0]
[null,null,null,null,null,null,null,null,null,null,null,null,0]
[null,null,null,null,null,null,null,null,null,null,null,null,0]
[null,null,null,null,null,null,null,null,null,null,null,null,0]
[null,null,null,null,null,null,null,null,null,null,null,null,0]
["Summen: ",null,null,null,null,{"$f":"SUM(F10:F26)","v":0},0,0,0,0,0,0,0]
["Konto in der Buchführung:",null,null,null,null,4530,4520,4510,4430,4250,4260,4900]
["Tag der Ausstellung",null,"Unterschrift",null,null,null,"Sachlich richtig",null,"Rechnerisch geprüft",null,"Betrag:"]
[null,null,null,null,null,null,null,null,null,null,"zur Zahlung angewiesen am:"]